bitfinex/quotes_BTCUSD_20260126
["timestamp","ask_amount","ask_price","bid_price","bid_amount"]
[1769456635118,0.03,88362.0,88351.0,0.66245599]
[1769456635320,0.03,88361.0,88351.0,0.66245599]
[1769456636275,0.03,88360.0,88353.0,0.63897193]
[1769456637102,0.03,88360.0,88354.0,0.66245599]
[1769456637509,0.32531601,88373.0,88354.0,0.66245599]
[1769456637510,0.03,88367.0,88354.0,0.66245599]
[1769456637831,0.03,88367.0,88357.0,1.0169052]
[1769456638035,0.03,88367.0,88357.0,1.0139207]
[1769456638235,0.03,88367.0,88357.0,1.0085486]
[1769456638438,0.03,88366.0,88357.0,1.0037734]
[1769456638638,0.03,88366.0,88357.0,0.64454899]
[1769456638847,0.06788992,88379.0,88356.0,0.37793327]
[1769456639054,0.01131464,88381.0,88362.0,0.52585648]
[1769456639280,0.01131439,88383.0,88362.0,0.52585648]
[1769456639281,0.0678915,88377.0,88369.0,0.31109327]
[1769456639526,0.0678915,88377.0,88362.0,0.43289648]
[1769456639527,0.03,88376.0,88362.0,0.45638054]
[1769456639732,0.03,88374.0,88362.0,0.45638054]
[1769456641045,0.03,88374.0,88351.0,0.63897193]
[1769456641046,0.01131618,88369.0,88351.0,0.63897193]
[1769456641272,0.03,88368.0,88355.0,0.63897193]
[1769456641503,0.03,88368.0,88355.0,0.66245599]
[1769456641713,0.03,88362.0,88346.0,0.66245599]
[1769456642139,0.03,88362.0,88348.0,0.63914083]
[1769456642343,0.05998314,88362.0,88350.0,0.37793327]
[1769456642550,0.05998314,88362.0,88350.0,0.63897193]
[1769456642753,0.05998314,88362.0,88348.0,0.0001689]
[1769456642754,0.03,88357.0,88348.0,0.0001689]
[1769456643352,0.04131772,88357.0,88348.0,0.0001689]
[1769456643554,0.03,88355.0,88348.0,0.0001689]
[1769456645649,0.03881866,88356.0,88348.0,0.0001689]
[1769456645650,0.03,88350.0,88348.0,0.0001689]
[1769456646663,0.03,88349.0,88348.0,0.0001689]
[1769456649427,0.03,88349.0,88342.0,0.17396]
[1769456649830,0.03,88348.0,88342.0,0.17396]
[1769456650968,0.03,88347.0,88342.0,0.83641599]
[1769456651976,0.03,88346.0,88342.0,0.83641599]
[1769456652510,0.03,88346.0,88343.0,0.02348406]
[1769456653015,0.03,88352.0,88343.0,0.02348406]
[1769456653972,0.03,88351.0,88343.0,0.02348406]
[1769456654803,0.03,88351.0,88343.0,0.63897193]
[1769456654998,0.03,88350.0,88344.0,0.02348406]
[1769456656166,0.03,88356.0,88344.0,0.02348406]
[1769456657214,0.03,88355.0,88344.0,0.02348406]
[1769456657614,0.31373559,88360.0,88344.0,0.02348406]
[1769456657821,0.01131772,88357.0,88344.0,0.02348406]
[1769456658481,0.03,88356.0,88344.0,0.02348406]
[1769456658711,0.03,88352.0,88344.0,0.02348406]
[1769456659134,0.03,88352.0,88342.0,0.17396]
[1769456659135,0.03,88350.0,88342.0,0.17396]
[1769456659856,0.04131861,88350.0,88338.0,0.02473128]
[1769456660079,0.04131861,88350.0,88320.0,0.37793327]
[1769456660080,0.04131861,88350.0,88330.0,0.67573984]
[1769456660081,0.03,88346.0,88330.0,0.67573984]
[1769456660293,0.03,88346.0,88333.0,0.67573984]
[1769456660511,0.03,88346.0,88333.0,0.70030222]
[1769456660936,0.03,88343.0,88333.0,0.70030222]
[1769456661162,0.03,88343.0,88333.0,0.70058552]
[1769456661378,0.03,88343.0,88333.0,0.02484568]
[1769456662011,0.03,88342.0,88333.0,0.02484568]
[1769456663083,0.03,88341.0,88333.0,0.02484568]
[1769456664168,0.25079512,88352.0,88333.0,0.02484568]
[1769456664169,0.02442785,88352.0,88333.0,0.02484568]
[1769456664377,0.01131797,88355.0,88333.0,0.02484568]
[1769456664378,0.06790887,88354.0,88337.0,0.02456238]
[1769456664639,0.0113181,88354.0,88334.0,0.67573984]
[1769456664833,0.02442785,88353.0,88335.0,0.70030222]
[1769456665984,0.03,88352.0,88335.0,0.70030222]
[1769456668367,0.03,88347.0,88335.0,0.70030222]
[1769456668984,0.03,88347.0,88334.0,0.0002833]
[1769456669188,0.03,88342.0,88334.0,0.0002833]
[1769456670024,0.03,88338.0,88334.0,0.0002833]
[1769456670394,0.03,88338.0,88329.0,4e-08]
[1769456671001,0.04131977,88341.0,88329.0,4e-08]
[1769456671203,0.03,88339.0,88329.0,4e-08]
[1769456671609,0.04132002,88339.0,88329.0,4e-08]
[1769456671810,0.03,88337.0,88329.0,4e-08]
[1769456672412,0.03,88333.0,88329.0,4e-08]
[1769456672578,0.03,88333.0,88321.0,0.67573984]
[1769456673388,0.03,88332.0,88321.0,0.67573984]
[1769456674637,0.03,88331.0,88321.0,0.67573984]
[1769456675754,0.03,88330.0,88321.0,0.67573984]
[1769456676609,0.03,88334.0,88321.0,0.67573984]
[1769456676810,0.03,88329.0,88321.0,0.67573984]
[1769456677793,0.03,88334.0,88321.0,0.67573984]
[1769456678287,0.03,88332.0,88321.0,0.67573984]
[1769456678488,0.03,88330.0,88321.0,0.67573984]
[1769456679451,0.03,88329.0,88321.0,0.67573984]
[1769456680439,0.03,88335.0,88321.0,0.67573984]
[1769456680637,0.04132054,88335.0,88321.0,0.67573984]
[1769456682740,0.03,88333.0,88320.0,0.02456238]
[1769456683102,0.20203164,88333.0,88314.0,0.67573984]
[1769456683297,0.19071085,88333.0,88314.0,0.67573984]
[1769456683564,0.19071085,88333.0,88315.0,0.02456238]
[1769456684096,0.28082804,88333.0,88315.0,0.02456238]
[1769456684320,0.06907281,88333.0,88315.0,0.02456238]
[1769456684524,0.03,88334.0,88315.0,0.02456238]
[1769456684888,0.04132066,88334.0,88315.0,0.02456238]
[1769456685095,0.01132118,88330.0,88315.0,0.02456238]
[1769456685316,0.03,88329.0,88315.0,0.02456238]
[1769456686118,0.03136283,88331.0,88315.0,0.02456238]
[1769456686469,0.03,88328.0,88315.0,0.02456238]
[1769456686676,0.03,88328.0,88315.0,0.02104438]
[1769456686840,0.03,88328.0,88315.0,0.02456238]
[1769456687038,0.03,88328.0,88317.0,0.02456238]
[1769456687242,0.03,88327.0,88318.0,0.02456238]
[1769456687650,0.03,88327.0,88319.0,0.02456238]
[1769456688223,0.03,88326.0,88319.0,0.02456238]
[1769456689260,0.03,88335.0,88319.0,0.02456238]
[1769456689746,0.2216571,88338.0,88319.0,0.02456238]
[1769456689954,0.00136283,88337.0,88319.0,0.02456238]
[1769456690163,0.05796462,88337.0,88319.0,0.02456238]
[1769456690375,0.0692849,88337.0,88319.0,0.02456238]
[1769456690585,0.03,88336.0,88319.0,0.02456238]
[1769456690999,0.04132041,88336.0,88319.0,0.02456238]
[1769456691379,0.03,88334.0,88319.0,0.02456238]
[1769456692818,0.03,88332.0,88319.0,0.02456238]
[1769456693015,0.04132092,88332.0,88319.0,0.02456238]
[1769456693249,0.03,88332.0,88319.0,0.02456238]
[1769456693684,0.05959672,88332.0,88319.0,0.02456238]
[1769456694199,0.03,88328.0,88319.0,0.02456238]
[1769456694609,0.03,88328.0,88313.0,0.67093112]
[1769456694610,0.03,88326.0,88313.0,0.0001771]
[1769456695014,0.03,88326.0,88310.0,0.02724856]
[1769456695015,0.07932691,88346.0,88302.0,0.2195371]
[1769456695016,0.07932691,88346.0,88302.0,0.0454971]
[1769456695017,0.03,88309.0,88302.0,0.0454971]
[1769456695267,0.03,88309.0,88303.0,0.02724856]
[1769456695472,0.03,88309.0,88299.0,0.67075402]
[1769456695473,0.03,88309.0,88299.0,0.67075074]
[1769456695646,0.03,88309.0,88300.0,0.02724856]
[1769456696051,0.03,88308.0,88300.0,0.02724856]
[1769456696253,0.03,88308.0,88301.0,0.67075402]
[1769456696429,0.03,88308.0,88302.0,0.02724856]
[1769456696634,0.03,88308.0,88301.0,0.67075402]
[1769456697080,0.06929887,88319.0,88301.0,0.67075402]
[1769456697081,0.03136283,88319.0,88301.0,0.67075402]
[1769456697306,0.03,88317.0,88301.0,0.67075402]
[1769456697506,0.03,88317.0,88301.0,0.69497145]
[1769456698349,0.03136283,88319.0,88301.0,0.69497145]
[1769456699389,0.03136283,88319.0,88301.0,0.69597145]
[1769456699844,0.03136283,88319.0,88301.0,0.69497145]
[1769456700253,0.03136283,88319.0,88301.0,0.69597145]
[1769456701416,0.0541976,88319.0,88301.0,0.69597145]
[1769456701600,0.0541976,88319.0,88301.0,0.6952978]
[1769456701751,0.0541976,88319.0,88301.0,0.6942978]
[1769456703430,0.23064978,88324.0,88294.0,0.0004]
[1769456703431,0.03,88324.0,88312.0,0.67075402]
[1769456703746,0.03,88324.0,88309.0,0.37840946]
[1769456703747,0.03,88324.0,88313.0,0.02421743]
[1769456703954,0.03,88324.0,88316.0,0.67075402]
[1769456704165,0.00028,88330.0,88315.0,0.02421743]
[1769456704166,0.00028,88330.0,88324.0,0.00017706]
[1769456704368,0.00028,88330.0,88291.0,0.03173901]
[1769456704369,0.00028,88330.0,88323.0,0.67075402]
[1769456705855,0.00028,88330.0,88321.0,0.02421743]
[1769456706088,0.03,88322.0,88310.0,0.37840946]
[1769456706434,0.03,88322.0,88308.0,0.17408]
[1769456706647,0.00999999,88323.0,88308.0,0.17408]
[1769456706648,0.03,88318.0,88308.0,0.17408]
[1769456706848,0.37840946,88320.0,88308.0,0.17408]
[1769456706849,0.05283477,88316.0,88308.0,0.17408]
[1769456707050,0.05283477,88316.0,88305.0,0.04532]
[1769456710856,0.03,88315.0,88306.0,0.67075402]
[1769456711899,0.02283477,88325.0,88306.0,0.67075402]
[1769456712389,0.02283477,88325.0,88310.0,0.37840946]
[1769456712626,0.02283477,88325.0,88306.0,0.67075402]
[1769456712845,0.00865604,88324.0,88306.0,0.67075402]
[1769456713075,0.03,88323.0,88306.0,0.67075402]
[1769456714430,0.00865604,88324.0,88296.0,0.02249237]
[1769456714431,0.02283477,88315.0,88296.0,0.02249237]
[1769456714609,0.01132246,88320.0,88297.0,0.67075402]
[1769456714814,0.01132246,88320.0,88294.0,0.0004]
[1769456714815,0.01132284,88317.0,88300.0,0.69324639]
[1769456715017,0.02283477,88318.0,88300.0,0.40090183]
[1769456715214,0.02283477,88318.0,88301.0,0.67075402]
[1769456715433,0.03,88317.0,88306.0,0.001]
[1769456715804,0.03,88317.0,88301.0,0.67075402]
[1769456716012,0.05283477,88317.0,88301.0,0.67075402]
[1769456716404,0.03,88315.0,88301.0,0.67075402]
[1769456717505,0.41270497,88330.0,88315.0,0.01]
[1769456717710,0.41270497,88330.0,88309.0,0.67075402]
[1769456717711,0.13533096,88329.0,88309.0,0.62513145]
[1769456717916,0.02283477,88329.0,88309.0,0.62513145]
[1769456718250,0.02283477,88327.0,88309.0,0.62513145]
[1769456718459,0.03,88326.0,88309.0,0.62513145]
[1769456718848,0.03,88326.0,88311.0,0.69391032]
[1769456719428,0.03,88325.0,88311.0,0.69391032]
[1769456720595,0.37868946,88330.0,88311.0,0.69391032]
[1769456720596,0.03,88324.0,88311.0,0.69391032]
[1769456721685,0.05457218,88326.0,88311.0,0.69391032]
[1769456723490,0.03,88329.0,88311.0,0.69391032]
[1769456723630,0.03,88325.0,88311.0,0.69391032]
[1769456723844,0.05457218,88325.0,88311.0,0.69391032]
[1769456724445,0.03,88323.0,88311.0,0.69391032]
[1769456725516,0.03,88324.0,88311.0,0.69391032]
[1769456727823,0.03,88322.0,88311.0,0.69391032]
[1769456728226,0.03,88320.0,88311.0,0.69391032]
[1769456728637,0.00028,88330.0,88311.0,0.69391032]
[1769456728638,0.00099,88330.0,88311.0,0.69391032]
[1769456728858,0.02457218,88328.0,88311.0,0.69391032]
[1769456729058,0.1372964,88327.0,88311.0,0.69391032]
[1769456729278,0.11272422,88326.0,88311.0,0.69391032]
[1769456729496,0.03,88325.0,88311.0,0.69391032]
[1769456730481,0.05457218,88323.0,88305.0,0.68920969]
[1769456730657,0.03,88323.0,88305.0,0.68920969]
[1769456730869,0.05457218,88321.0,88305.0,0.68920969]
[1769456731505,0.01132195,88324.0,88299.0,0.68920969]
[1769456731506,0.03,88317.0,88299.0,0.68920969]
[1769456731870,0.03,88315.0,88300.0,0.37840946]
[1769456732073,0.03,88315.0,88301.0,0.68920969]
[1769456732346,0.03,88315.0,88301.0,0.71025407]
[1769456732549,0.03,88315.0,88301.0,0.71293813]
[1769456732753,0.03,88314.0,88301.0,0.71293813]
[1769456733845,0.03,88313.0,88301.0,0.71293813]
[1769456734812,0.05457218,88320.0,88301.0,0.71293813]
[1769456739700,0.05457218,88320.0,88302.0,0.02372844]
[1769456739903,0.05457218,88320.0,88303.0,0.68920969]
[1769456743943,0.46417854,88340.0,88298.0,0.0002149]
[1769456743944,0.03,88336.0,88311.0,0.68920969]
[1769456744156,0.03,88334.0,88320.0,1.06761915]
[1769456744375,0.03,88332.0,88320.0,0.68920969]
[1769456744574,0.03,88330.0,88317.0,0.02372844]
[1769456744777,0.03,88328.0,88314.0,0.68920969]
[1769456745832,0.03,88327.0,88314.0,0.68920969]
[1769456746300,0.03,88325.0,88314.0,0.68920969]
[1769456747363,0.05696116,88393.0,88314.0,0.68920969]
[1769456747364,0.01132054,88335.0,88314.0,0.68920969]
[1769456747561,0.05660485,88332.0,88314.0,0.68920969]
[1769456747776,0.1127387,88330.0,88314.0,0.68920969]
[1769456747975,0.03589323,88331.0,88314.0,0.68920969]
[1769456748180,0.02457218,88331.0,88314.0,0.68920969]
[1769456748392,0.03,88330.0,88314.0,0.68920969]
[1769456749777,0.40840946,88330.0,88314.0,0.68920969]
[1769456750979,0.03,88330.0,88314.0,0.68920969]
[1769456751625,0.04132118,88330.0,88314.0,0.68920969]
[1769456752035,0.03,88330.0,88314.0,0.68920969]
[1769456752536,0.03,88328.0,88314.0,0.68920969]
[1769456753637,0.03,88327.0,88314.0,0.68920969]
[1769456754663,0.03,88326.0,88314.0,0.68920969]
[1769456755772,0.03,88325.0,88314.0,0.68920969]
[1769456756547,0.0679234,88335.0,88316.0,0.63484999]
[1769456756770,0.0679234,88335.0,88310.0,0.37840946]
[1769456756771,0.03,88333.0,88317.0,0.02348743]
[1769456756993,0.03,88331.0,88318.0,0.65833742]
[1769456758013,0.01132015,88338.0,88318.0,0.65833742]
[1769456758014,0.03,88330.0,88318.0,0.65833742]
[1769456759102,0.03,88329.0,88318.0,0.65833742]
[1769456760025,0.03,88328.0,88318.0,0.65833742]
[1769456761066,0.0001016,88328.0,88318.0,0.65833742]
[1769456761883,0.05327198,88336.0,88319.0,0.63484999]
[1769456762134,0.03,88334.0,88319.0,0.63484999]
[1769456762786,0.03,88332.0,88319.0,0.63484999]
[1769456763436,0.03,88332.0,88304.0,0.01132451]
[1769456763438,0.01132348,88312.0,88299.0,0.0001901]
[1769456763657,0.01,88319.0,88299.0,0.0001901]
[1769456763658,0.03,88307.0,88299.0,0.0001901]
[1769456763882,0.03,88307.0,88294.0,0.0004]
[1769456763884,0.0988118,88301.0,88294.0,0.0004]
[1769456764102,0.03,88297.0,88294.0,0.0004]
[1769456764536,0.03,88297.0,88294.0,3.705e-05]
[1769456765192,0.03,88296.0,88294.0,3.705e-05]
[1769456765450,0.05327198,88295.0,88294.0,0.00103705]
[1769456768071,0.05327198,88295.0,88294.0,0.00203705]
[1769456770799,0.03,88295.0,88294.0,0.00203705]
[1769456771015,0.02327198,88301.0,88294.0,0.00203705]
[1769456771465,0.01132272,88318.0,88295.0,0.63484999]
[1769456771466,0.02327198,88309.0,88295.0,0.63484999]
[1769456771907,0.03,88308.0,88295.0,0.63484999]
[1769456772328,0.03,88308.0,88298.0,0.37825856]
[1769456772540,0.03,88308.0,88299.0,0.63484999]
[1769456772755,0.02327198,88309.0,88299.0,0.63484999]
[1769456773644,0.03,88318.0,88299.0,0.37825856]
[1769456773844,0.03,88318.0,88308.0,0.37825856]
[1769456774071,0.03,88318.0,88307.0,0.65833742]
[1769456774261,0.03,88318.0,88309.0,0.63484999]
[1769456774406,0.02327198,88327.0,88309.0,0.63484999]
[1769456774606,0.03,88326.0,88309.0,0.63484999]
[1769456774834,0.03,88326.0,88309.0,0.65589437]
[1769456775163,0.03,88326.0,88309.0,0.63484999]
[1769456776650,0.02327198,88327.0,88311.0,0.63484999]
[1769456776865,0.03,88338.0,88312.0,0.02348743]
[1769456777076,0.03,88338.0,88310.0,0.37844866]
[1769456777077,0.00101338,88333.0,88314.0,0.02348743]
[1769456777702,0.03101338,88332.0,88314.0,0.02348743]
[1769456777911,0.03101338,88332.0,88316.0,0.02348743]
[1769456780722,0.03,88339.0,88321.0,0.6354338]
[1769456780913,0.03,88339.0,88320.0,0.37825856]
[1769456780914,0.03,88339.0,88325.0,0.6354338]
[1769456781089,0.03,88339.0,88327.0,0.0228055]
[1769456781503,0.03,88339.0,88327.0,0.6582393]
[1769456781787,0.03,88338.0,88327.0,0.6582393]
[1769456781952,0.03,88338.0,88328.0,0.0228055]
[1769456782394,0.03,88338.0,88328.0,0.6582393]
[1769456782600,0.02193418,88348.0,88321.0,0.6354338]
[1769456782803,0.03,88347.0,88324.0,0.0228055]
[1769456783014,0.03,88347.0,88327.0,0.6354338]
[1769456783195,0.03,88347.0,88328.0,0.0228055]
[1769456783608,0.03,88347.0,88332.0,0.6354338]
[1769456783856,0.03,88346.0,88333.0,0.0228055]
[1769456784839,0.03,88345.0,88333.0,0.0228055]
[1769456785899,0.03,88344.0,88333.0,0.0228055]
[1769456787103,0.03,88343.0,88333.0,0.0228055]
[1769456787964,0.03,88343.0,88328.0,0.1968855]
[1769456788194,0.03,88342.0,88328.0,0.8323193]
[1769456788488,0.03,88342.0,88328.0,0.85336368]
[1769456788702,0.03,88342.0,88328.0,0.8323193]
[1769456789134,0.03,88341.0,88328.0,0.8323193]
[1769456790281,0.099,88346.0,88328.0,0.8323193]
[1769456790282,0.03,88340.0,88328.0,0.8323193]
[1769456791222,0.03,88339.0,88328.0,0.8323193]
[1769456791437,0.02319701,88346.0,88330.0,0.37825856]
[1769456791651,0.02319701,88346.0,88329.0,0.6354338]
[1769456792354,0.03,88345.0,88329.0,0.6354338]
[1769456794514,0.03,88345.0,88328.0,0.1968855]
[1769456794515,0.03,88345.0,88330.0,1.01369236]
[1769456795651,0.03,88345.0,88330.0,0.6354338]
[1769456796057,0.03,88345.0,88330.0,1.01369236]
[1769456796543,0.03,88345.0,88330.0,0.6582393]
[1769456797496,0.02319701,88346.0,88330.0,0.6582393]
[1769456797497,0.03,88343.0,88330.0,0.0228055]
[1769456797720,0.03,88343.0,88328.0,0.17408]
[1769456797927,0.03,88343.0,88319.0,0.17404]
[1769456797928,0.03,88329.0,88319.0,0.17404]
[1769456798615,0.03,88329.0,88320.0,0.6354338]
[1769456799052,0.03,88328.0,88320.0,0.6582393]
[1769456800018,0.03,88327.0,88320.0,0.6582393]
[1769456800226,0.02319701,88337.0,88320.0,0.6582393]
[1769456800459,0.02319701,88337.0,88321.0,0.0228055]
[1769456800660,0.02319701,88337.0,88322.0,0.6354338]
[1769456801099,0.03,88336.0,88322.0,0.6354338]
[1769456801331,0.37825856,88350.0,88324.0,0.6354338]
[1769456801535,0.37825856,88350.0,88327.0,0.0228055]
[1769456801536,0.40145557,88350.0,88327.0,0.0228055]
[1769456801736,0.40145557,88350.0,88331.0,0.6354338]
[1769456802094,0.03,88349.0,88331.0,0.6354338]
[1769456802298,0.03,88347.0,88331.0,0.6354338]
[1769456802520,0.03,88345.0,88330.0,0.0228055]
[1769456803086,0.03,88345.0,88323.0,0.0228055]
[1769456803087,0.03,88343.0,88323.0,0.0228055]
[1769456803386,0.03,88339.0,88324.0,0.6354338]
[1769456803585,0.03,88337.0,88325.0,0.17404]
[1769456804068,0.02319701,88337.0,88325.0,0.17404]
[1769456806496,0.03,88336.0,88325.0,0.17404]
[1769456807047,0.02319701,88342.0,88325.0,0.8322793]
[1769456807623,0.03,88341.0,88325.0,0.8322793]
[1769456808839,0.13030041,88341.0,88325.0,0.8322793]
[1769456809040,0.03,88345.0,88325.0,0.17404]
[1769456809226,0.03,88343.0,88328.0,0.63649961]
[1769456809430,0.03,88343.0,88329.0,0.66121366]
[1769456809789,0.03,88343.0,88325.0,0.17404]
[1769456810015,0.13030041,88343.0,88325.0,0.17404]
[1769456810189,0.03,88342.0,88325.0,0.17404]
[1769456811476,0.03,88340.0,88325.0,0.17404]
[1769456811681,0.03,88334.0,88325.0,0.17404]
[1769456812094,0.03,88330.0,88310.0,0.37825856]
[1769456812249,0.13030041,88328.0,88308.0,0.04532]
[1769456812617,0.13030041,88328.0,88311.0,0.17404]
[1769456812825,0.03,88326.0,88311.0,0.17404]
[1769456813028,0.23774222,88331.0,88311.0,0.17404]
[1769456813029,0.13030041,88319.0,88311.0,0.17404]
[1769456813233,0.01132246,88320.0,88308.0,0.04532]
[1769456813234,0.03,88315.0,88308.0,0.04532]
[1769456813670,0.03491405,88317.0,88308.0,0.04532]
[1769456813671,0.06030724,88311.0,88308.0,0.04532]
[1769456813877,0.03,88305.0,88303.0,0.0002804]
[1769456814114,0.03,88305.0,88297.0,0.17404]
[1769456815265,0.03,88305.0,88297.0,0.17504]
[1769456816125,0.02359121,88311.0,88297.0,0.17504]
[1769456816126,0.03,88304.0,88297.0,0.17504]
[1769456816339,0.03,88304.0,88297.0,0.17404]
[1769456816948,0.03,88303.0,88297.0,0.17404]
[1769456817577,0.03,88303.0,88297.0,0.17504]
[1769456818040,0.03,88302.0,88297.0,0.17404]
[1769456818189,0.03,88300.0,88297.0,0.17404]
[1769456818354,0.03,88300.0,88297.0,0.17504]
[1769456818777,0.03,88298.0,88297.0,0.001]
[1769456819446,0.001,88297.0,88293.0,0.0004]
[1769456819866,0.03,88298.0,88293.0,0.0004]
[1769456821132,0.04132464,88303.0,88293.0,0.0004]
[1769456821532,0.06002965,88303.0,88293.0,0.0004]
[1769456822523,0.03,88301.0,88293.0,0.0004]
[1769456823365,0.03,88299.0,88293.0,0.0004]
[1769456823577,0.03,88297.0,88293.0,0.0004]
[1769456823793,0.03,88297.0,88293.0,3.705e-05]
[1769456823968,0.05963365,88295.0,88293.0,3.705e-05]
[1769456824370,0.00394711,88297.0,88293.0,3.705e-05]
[1769456824371,0.05963365,88294.0,88293.0,3.705e-05]
[1769456825149,0.06938923,88294.0,88293.0,3.705e-05]
[1769456825962,0.03,88294.0,88293.0,3.705e-05]
[1769456826374,0.01132425,88306.0,88293.0,3.705e-05]
[1769456826648,0.04095765,88308.0,88293.0,3.705e-05]
[1769456826793,0.01132413,88307.0,88293.0,3.705e-05]
[1769456826988,0.03,88311.0,88295.0,0.56074016]
[1769456827272,0.03,88311.0,88295.0,0.53843249]
[1769456827723,0.03,88311.0,88295.0,0.02471405]
[1769456827905,0.181187,88311.0,88295.0,0.02471405]
[1769456828109,0.03,88309.0,88295.0,0.02471405]
[1769456828535,0.03,88309.0,88293.0,3.661e-05]
[1769456828733,0.03,88309.0,88293.0,0.63653622]
[1769456829890,0.03,88313.0,88293.0,0.63653622]
[1769456830092,0.03,88311.0,88293.0,0.63653622]
[1769456831176,0.03,88308.0,88293.0,0.63653622]
[1769456831557,0.03,88304.0,88293.0,0.63653622]
[1769456831894,0.03,88304.0,88293.0,3.661e-05]
[1769456832777,0.03,88303.0,88293.0,3.661e-05]
[1769456833815,0.01910323,88307.0,88293.0,3.661e-05]
[1769456833816,0.03,88302.0,88293.0,3.661e-05]
[1769456834696,0.03,88301.0,88293.0,3.661e-05]
[1769456835096,0.0413249,88301.0,88293.0,3.661e-05]
[1769456835364,0.03,88298.0,88293.0,3.661e-05]
[1769456835570,0.01132477,88302.0,88293.0,3.661e-05]
[1769456835571,0.03,88296.0,88293.0,3.661e-05]
[1769456836972,0.09795331,88296.0,88286.0,0.000274]
[1769456837141,0.03,88294.0,88286.0,0.000274]
[1769456838615,0.04132579,88294.0,88286.0,0.000274]
[1769456838929,0.03,88293.0,88286.0,0.000274]
[1769456839747,0.03,88293.0,88280.0,0.69728988]
[1769456839952,0.03,88292.0,88286.0,0.0002644]
[1769456840813,0.03,88292.0,88281.0,0.69728988]
[1769456841108,0.03,88291.0,88285.0,0.69728988]
[1769456841909,0.37852247,88300.0,88285.0,0.69728988]
[1769456841910,0.03,88290.0,88285.0,0.69728988]
[1769456842505,0.03,88290.0,88279.0,0.02419121]
[1769456842736,0.03,88290.0,88277.0,0.0001888]
[1769456842737,0.03,88288.0,88277.0,0.0001888]
[1769456842916,0.04132682,88286.0,88277.0,0.0001888]
[1769456843162,0.03,88284.0,88277.0,0.0001888]
[1769456843294,0.03,88284.0,88267.0,0.76724109]
[1769456843668,0.03,88282.0,88267.0,0.76724109]
[1769456844501,0.03,88284.0,88267.0,0.76724109]
[1769456844907,0.05479828,88284.0,88267.0,0.76724109]
[1769456845111,0.03,88279.0,88267.0,0.76724109]
[1769456846184,0.03,88279.0,88267.0,0.04576]
[1769456847521,0.04132772,88279.0,88267.0,0.0004]
[1769456847738,0.01849616,88283.0,88253.0,0.0004]
[1769456847739,0.0004,88266.0,88256.0,0.02419121]
[1769456847948,0.03,88272.0,88256.0,0.02419121]
[1769456847949,0.03,88270.0,88256.0,0.02419121]
[1769456848371,0.03,88268.0,88253.0,0.0004]
[1769456848596,0.01132797,88277.0,88253.0,0.0004]
[1769456848597,0.08195536,88293.0,88262.0,0.69728988]
[1769456850355,0.00136362,88286.0,88278.0,0.69728988]
[1769456851394,0.00136362,88286.0,88275.0,0.02419121]
[1769456852213,0.00136362,88286.0,88260.0,0.69728988]
[1769456852214,0.0098112,88275.0,88260.0,0.69728988]
[1769456852420,0.03,88274.0,88263.0,0.02419121]
[1769456852620,0.03,88274.0,88264.0,0.69728988]
[1769456853150,0.03,88274.0,88264.0,0.72148109]
[1769456853348,0.03,88273.0,88264.0,0.72148109]
[1769456853775,0.03,88273.0,88264.0,0.02419121]
[1769456853975,0.03,88271.0,88259.0,0.0004]
[1769456854181,0.03,88269.0,88259.0,0.0004]
[1769456855388,0.0349657,88268.0,88259.0,0.0004]
[1769456856408,0.03,88267.0,88259.0,0.0004]
[1769456857386,0.03,88266.0,88259.0,0.0004]
[1769456858372,0.03,88265.0,88259.0,0.0004]
[1769456858999,0.02479828,88279.0,88259.0,0.0004]
[1769456859321,0.02479828,88278.0,88259.0,0.0004]
[1769456859455,0.05479828,88277.0,88259.0,0.0004]
[1769456859660,0.03,88275.0,88259.0,0.0004]
[1769456859879,0.00136362,88264.0,88259.0,0.72188109]
[1769456862217,0.00136362,88264.0,88259.0,0.69768988]
[1769456862627,0.00136362,88264.0,88259.0,0.0004]
[1769456863175,0.00136362,88264.0,88254.0,0.02419121]
[1769456863518,0.00136362,88264.0,88253.0,0.0004]
[1769456863519,0.03,88263.0,88253.0,0.0004]
[1769456864095,0.05801218,88264.0,88253.0,0.0004]
[1769456864096,0.03,88261.0,88253.0,0.0004]
[1769456864579,0.03,88261.0,88248.0,0.0004]
[1769456864580,0.0004,88253.0,88248.0,0.0004]
[1769456864991,0.03,88257.0,88248.0,0.0004]
[1769456865196,0.05479828,88257.0,88248.0,0.0004]
[1769456865404,0.03,88257.0,88248.0,0.0004]
[1769456866051,0.03,88256.0,88248.0,0.0004]
[1769456866738,0.0349657,88256.0,88248.0,0.0004]
[1769456867288,0.03,88255.0,88248.0,0.0004]
[1769456868178,0.01154675,88279.0,88255.0,0.0005888]
[1769456868179,0.17416,88270.0,88255.0,0.0005888]
[1769456868437,0.17416,88270.0,88256.0,0.72148109]
[1769456868438,0.03,88269.0,88256.0,0.72148109]
[1769456869069,0.00136356,88268.0,88256.0,0.72148109]
[1769456869668,0.00136356,88268.0,88256.0,0.7212811]
[1769456870281,0.03,88272.0,88248.0,0.0004]
[1769456870485,0.03,88272.0,88264.0,0.67407142]
[1769456870885,0.03,88272.0,88266.0,0.67407142]
[1769456871330,0.03,88271.0,88266.0,0.67407142]
[1769456871530,0.12295531,88291.0,88267.0,0.02447305]
[1769456871743,0.11244696,88290.0,88270.0,0.67407142]
[1769456871892,0.02375732,88291.0,88272.0,0.67407142]
[1769456872069,0.02375732,88291.0,88274.0,0.67407142]
[1769456872346,0.03,88290.0,88274.0,0.67407142]
[1769456872553,0.04535137,88300.0,88274.0,0.67407142]
[1769456872554,0.02375732,88305.0,88276.0,0.67407142]
[1769456872784,0.02375732,88303.0,88279.0,0.02447305]
[1769456872988,0.02375732,88303.0,88282.0,0.67407142]
[1769456873188,0.02375732,88303.0,88283.0,0.02447305]
[1769456873390,0.03,88302.0,88284.0,0.69854447]
[1769456874601,0.03,88300.0,88284.0,0.69854447]
[1769456875910,0.02375732,88301.0,88284.0,0.69854447]